[Event "Irish New Year Events-IM2 2020"]
[Site "Dublin"]
[Date "2020.01.03"]
[Round "2.11"]
[White "Baburin, Alexander"]
[Black "Melaugh, Gavin"]
[Result "1-0"]
[ECO "A96"]
[WhiteElo "2419"]
[BlackElo "2076"]
[Annotator "ChessBase"]
[PlyCount "85"]
[EventDate "2020.01.02"]
[EventType "tourn"]
[EventCountry "IRL"]
[SourceTitle "playchess.com"]
[Source "ChessBase"]
[SourceQuality "1"]
[TimeControl "40/5400+30:1800+30"]

1. d4 {[%emt 0:00:11]} e6 {[%emt 0:14:17]} 2. c4 {[%emt 0:00:46]} f5 {[%emt 0:00:46]} 3. g3 {[%emt 0:00:16]} Nf6 {[%emt 0:00:06]} 4. Bg2 {[%emt 0:00:04]} Be7 {[%emt 0:00:07]} 5. Nf3 {[%emt 0:00:11]} O-O {[%emt 0:00:06]} 6. O-O {[%emt 0:00:11]} d6 {[%emt 0:00:04]} 7. b3 {[%emt 0:01:46]} Ne4 {[%emt 0:03:10]} 8. Bb2 {[%emt 0:02:18]} Bf6 {[%emt 0:00:11]} 9. Nbd2 {[%emt 0:04:08]} Nc6 {[%emt 0:03:52]} 10. Nxe4 {[%emt 0:07:31]} fxe4 {[%emt 0:00:18]} 11. Ne1 {[%emt 0:00:08]} d5 {[%emt 0:00:23]} 12. e3 {[%emt 0:00:13]} Ne7 {[%emt 0:16:39]} 13. f3 {[%emt 0:05:47]} Nf5 {[%emt 0:01:56]} 14. Qe2 {[%emt 0:02:17]} c5 {[%emt 0:12:00]} 15. fxe4 {[%emt 0:11:53]} dxe4 {[%emt 0:00:41]} 16. dxc5 {[%emt 0:01:15]} Bxb2 {[%emt 0:02:36]} 17. Qxb2 {[%emt 0:02:22]} Nxe3 {[%emt 0:01:16]} 18. Rxf8+ {[%emt 0:01:26]} Qxf8 {[%emt 0:00:11]} 19. Qf2 {[%emt 0:01:12]} Nxg2 {[%emt 0:09:25]} 20. Qxf8+ {[%emt 0:08:00]} Kxf8 {[%emt 0:00:05]} 21. Nxg2 {[%emt 0:00:06]} Bd7 {[%emt 0:01:42]} 22. Ne3 {[%emt 0:01:16]} Ke7 {[%emt 0:09:47]} 23. Kf2 {[%emt 0:08:10]} Be8 {[%emt 0:05:58]} 24. Ke2 {[%emt 0:02:54]} Bh5+ {[%emt 0:05:04]} 25. g4 {[%emt 0:02:39]} Bg6 {[%emt 0:00:26]} 26. h4 {[%emt 0:02:03]} h5 {[%emt 0:01:08]} 27. g5 {[%emt 0:01:45]} Rf8 {[%emt 0:03:48]} 28. Rf1 {[%emt 0:00:19]} Rc8 {[%emt 0:00:32]} 29. b4 {[%emt 0:00:47]} a5 {[%emt 0:00:14]} 30. a3 {[%emt 0:00:28]} axb4 {[%emt 0:00:04]} 31. axb4 {[%emt 0:00:09]} Ra8 {[%emt 0:00:10]} 32. Rd1 {[%emt 0:03:27]} Ra2+ {[%emt 0:01:18]} 33. Rd2 {[%emt 0:00:30]} Ra1 {[%emt 0:02:21]} 34. b5 {[%emt 0:00:41]} Rh1 {[%emt 0:01:44]} 35. Rd6 {[%emt 0:02:02]} Rh2+ {[%emt 0:02:38]} 36. Kf1 {[%emt 0:03:39]} Rh3 {[%emt 0:00:09]} 37. Kf2 {[%emt 0:00:16]} Rf3+ {[%emt 0:00:43]} 38. Ke2 {[%emt 0:25:54]} Rh3 39. Kf2 {[%emt 0:00:30]} Rh2+ 40. Kg3 {[%emt 0:00:30]} Re2 {[%emt 0:04:05]} 41. Kf4 {[%emt 0:30:30]} Bh7 {[%emt 0:30:30]} 42. g6 {[%emt 0:00:30]} Bxg6 {[%emt 0:00:30]} 43. Rb6 {[%emt 0:00:30]} 1-0

[Event "Irish New Year Events-IM2 2020"]
[Site "Dublin"]
[Date "2020.01.03"]
[Round "2.12"]
[White "Haque, Muhtarim-Ul"]
[Black "Kanyamarala, Trisha"]
[Result "1/2-1/2"]
[ECO "D46"]
[WhiteElo "2045"]
[BlackElo "2195"]
[Annotator "NA"]
[PlyCount "79"]
[EventDate "2020.01.02"]
[EventType "tourn"]
[EventCountry "IRL"]
[SourceTitle "playchess.com"]
[Source "ChessBase"]
[SourceQuality "1"]
[TimeControl "40/5400+30:1800+30"]

1. d4 {[%emt 0:00:00]} Nf6 {[%emt 0:00:00]} 2. c4 {[%emt 0:00:00]} e6 {[%emt 0:00:04]} 3. Nc3 {[%emt 0:00:00]} d5 {[%emt 0:00:55]} 4. Nf3 {[%emt 0:00:00]} c6 {[%emt 0:00:45]} 5. e3 {[%emt 0:00:13]} Bd6 {[%emt 0:02:42]} 6. Bd3 {[%emt 0:00:51]} Nbd7 {[%emt 0:02:07]} 7. O-O {[%emt 0:01:06]} dxc4 {[%emt 0:01:18]} 8. Bxc4 {[%emt 0:00:08]} b5 {[%emt 0:00:09] D46: Semi-Slav: 5 e3 Nbd7 6 Bd3, Black avoids the Meran} (8... O-O 9. e4 e5 10. Be3 Qe7 11. Bb3 exd4 12. Bxd4 Ne5 13. Nxe5 Bxe5 14. Bxe5 Qxe5 15. f4 Qc5+ 16. Kh1 Be6 17. e5 Rad8 18. Qf3 {1-0 (38) Yilmaz,M (2624)-Baryshpolets,A (2603) Ankara 2018}) 9. Bd3 {[%emt 0:00:56]} a6 {[%emt 0:03:37]} 10. Qe2 {[%emt 0:02:24]} O-O {[%emt 0:03:13]} 11. e4 {[%emt 0:10:20]} e5 {[%emt 0:03:28]} 12. dxe5 {[%emt 0:00:46]} Nxe5 {[%emt 0:00:08]} 13. Nxe5 {[%emt 0:00:11]} Bxe5 {[%emt 0:00:06]} 14. Bg5 $146 {[%emt 0:00:26]} ({Predecessor:} 14. Be3 Ng4 15. Rfd1 Bxh2+ 16. Kf1 Qh4 17. Qd2 Nxe3+ 18. Qxe3 Bf4 19. Qe1 Qh1+ 20. Ke2 Qxg2 21. Rdb1 Bg4# {0-1 (21) Gentner,M (2095)-Keim,P (1876) Hoersching 2015}) 14... h6 {[%emt 0:11:13]} 15. Bh4 {[%emt 0:00:41]} Qd6 {[%emt 0:00:45]} 16. Bg3 {[%emt 0:00:33]} Bxg3 {[%emt 0:01:24]} 17. hxg3 {[%emt 0:00:11]} Re8 {[%emt 0:00:54]} 18. Rfe1 {[%emt 0:01:32]} Qe5 {[%emt 0:02:43]} 19. Nd1 {[%emt 0:05:09]} c5 {[%emt 0:12:58]} 20. Ne3 {[%emt 0:02:45]} c4 {[%emt 0:02:43]} 21. Bc2 {[%emt 0:01:56]} Bb7 {[%emt 0:13:18]} 22. f4 {[%emt 0:01:37]} Qc5 {[%emt 0:03:12]} 23. e5 {[%emt 0:03:45]} Nd5 {[%emt 0:03:41]} 24. Kh2 {[%emt 0:00:48]} Nxe3 {[%emt 0:02:47]} 25. Qxe3 {[%emt 0:00:02]} Qxe3 {[%emt 0:00:52]} 26. Rxe3 {[%emt 0:00:01]} Rad8 {[%emt 0:00:11]} 27. Re2 {[%emt 0:00:22]} Re7 {[%emt 0:01:17]} 28. f5 {[%emt 0:03:32]} Bc8 {[%emt 0:06:44]} 29. Rf1 {[%emt 0:02:26]} Rd5 {[%emt 0:00:57]} 30. Rfe1 {[%emt 0:01:10]} Kf8 {[%emt 0:05:52]} 31. g4 {[%emt 0:04:39]} Rd4 {[%emt 0:01:00]} 32. Kg3 {[%emt 0:01:28]} Bb7 {[%emt 0:02:08]} 33. Rh1 {[%emt 0:06:56]} Rd5 $11 {[%emt 0:01:22]} 34. g5 {[%emt 0:06:37]} Rexe5 {[%emt 0:02:45]} 35. Rxe5 {[%emt 0:00:10]} Rxe5 {[%emt 0:00:04]} 36. gxh6 {[%emt 0:00:29]} gxh6 {[%emt 0:00:07]} 37. f6 {[%emt 0:02:52]} h5 {[%emt 0:05:57]} 38. Kf4 {[%emt 0:00:43]} Re6 {[%emt 0:01:55]} 39. Kg5 {[%emt 0:02:52]} Re5+ {[%emt 0:01:12]} 40. Kf4 {[%emt 0:00:08]} 1/2-1/2

[Event "Irish New Year Events-IM2 2020"]
[Site "Dublin"]
[Date "2020.01.03"]
[Round "2.13"]
[White "Froewis, Georg"]
[Black "Abdulla, Murad"]
[Result "1/2-1/2"]
[ECO "A05"]
[WhiteElo "2470"]
[BlackElo "2257"]
[Annotator "ChessBase"]
[PlyCount "68"]
[EventDate "2020.01.02"]
[EventType "tourn"]
[EventCountry "IRL"]
[SourceTitle "playchess.com"]
[Source "ChessBase"]
[SourceQuality "1"]
[TimeControl "40/5400+30:1800+30"]

1. Nf3 {[%emt 0:00:00]} Nf6 {[%emt 0:00:00]} 2. b3 {[%emt 0:00:39]} c5 {[%emt 0:05:10]} 3. Bb2 {[%emt 0:00:08]} Nc6 {[%emt 0:02:51]} 4. c4 {[%emt 0:01:38]} g6 {[%emt 0:03:20]} 5. g3 {[%emt 0:05:30]} Bg7 {[%emt 0:00:27]} 6. Bg2 {[%emt 0:00:04]} O-O {[%emt 0:00:18]} 7. O-O {[%emt 0:00:03]} d5 {[%emt 0:01:56]} 8. cxd5 {[%emt 0:00:04]} Nxd5 {[%emt 0:01:10]} 9. Bxg7 {[%emt 0:00:04]} Kxg7 {[%emt 0:00:12]} 10. Qc1 {[%emt 0:00:03]} Qd6 {[%emt 0:14:12]} 11. Nc3 {[%emt 0:07:08]} Nxc3 {[%emt 0:16:19]} 12. Qxc3+ {[%emt 0:00:51]} Kg8 {[%emt 0:00:16]} 13. Rfc1 {[%emt 0:07:20]} b6 {[%emt 0:03:22]} 14. d4 {[%emt 0:02:14]} Nxd4 {[%emt 0:01:16]} 15. Nxd4 {[%emt 0:00:06]} cxd4 {[%emt 0:00:28]} 16. Qc7 {[%emt 0:00:15]} Rb8 {[%emt 0:05:06]} 17. Qxd6 {[%emt 0:13:29]} exd6 {[%emt 0:00:07]} 18. Rd1 {[%emt 0:00:05]} Ba6 {[%emt 0:06:04]} 19. Rxd4 {[%emt 0:01:40]} Bxe2 {[%emt 0:00:42]} 20. Re1 {[%emt 0:00:22]} Bb5 {[%emt 0:16:57]} 21. a4 {[%emt 0:07:32]} Rfe8 {[%emt 0:02:03]} 22. Red1 {[%emt 0:17:26]} Bd7 {[%emt 0:04:35]} 23. Rxd6 {[%emt 0:01:42]} Bg4 {[%emt 0:00:24]} 24. Rc1 {[%emt 0:00:52]} Rbd8 {[%emt 0:01:43]} 25. Rxd8 {[%emt 0:14:52]} Rxd8 {[%emt 0:00:06]} 26. Bf1 {[%emt 0:00:19]} Be6 {[%emt 0:02:24]} 27. Rb1 {[%emt 0:08:23]} Rd2 {[%emt 0:02:26]} 28. Bb5 {[%emt 0:03:29]} Kf8 {[%emt 0:01:53]} 29. Kf1 {[%emt 0:00:53]} Bf5 {[%emt 0:02:18]} 30. Rc1 {[%emt 0:00:43]} Bd3+ {[%emt 0:00:52]} 31. Bxd3 {[%emt 0:00:11]} Rxd3 {[%emt 0:00:04]} 32. Rb1 {[%emt 0:00:30]} Rd2 {[%emt 0:00:08]} 33. Re1 {[%emt 0:00:38]} Rd3 {[%emt 0:00:33]} 34. Rb1 {[%emt 0:00:57]} Rd2 {[%emt 0:01:14]} 1/2-1/2

[Event "Irish New Year Events-IM2 2020"]
[Site "Dublin"]
[Date "2020.01.03"]
[Round "2.14"]
[White "Alienkin, Aleksander"]
[Black "Carroll, Peter"]
[Result "1-0"]
[ECO "E94"]
[WhiteElo "2382"]
[BlackElo "2087"]
[Annotator "ChessBase"]
[PlyCount "63"]
[EventDate "2020.01.02"]
[EventType "tourn"]
[EventCountry "IRL"]
[SourceTitle "playchess.com"]
[Source "ChessBase"]
[SourceQuality "1"]
[TimeControl "40/5400+30:1800+30"]

1. d4 {[%emt 0:00:00]} Nf6 {[%emt 0:00:00]} 2. Nf3 {[%emt 0:00:01]} g6 {[%emt 0:00:29]} 3. c4 {[%emt 0:03:30]} Bg7 {[%emt 0:01:31]} 4. Nc3 {[%emt 0:03:23]} O-O {[%emt 0:00:06]} 5. e4 {[%emt 0:00:14]} d6 {[%emt 0:00:05]} 6. Be2 {[%emt 0:00:14]} e5 {[%emt 0:00:05]} 7. O-O {[%emt 0:00:41]} exd4 {[%emt 0:00:49]} 8. Nxd4 {[%emt 0:00:25]} Nc6 {[%emt 0:00:04]} 9. Be3 {[%emt 0:04:48]} Re8 {[%emt 0:00:27]} 10. f3 {[%emt 0:02:25]} Nh5 {[%emt 0:00:15]} 11. Nxc6 {[%emt 0:06:56]} bxc6 {[%emt 0:00:06]} 12. Qd2 {[%emt 0:00:12]} c5 {[%emt 0:03:34]} 13. Rad1 {[%emt 0:03:18]} Bb7 14. Qc1 {[%emt 0:15:07]} Qe7 {[%emt 0:10:48]} 15. Bg5 {[%emt 0:03:29]} f6 {[%emt 0:02:05]} 16. Bh4 {[%emt 0:15:36]} g5 {[%emt 0:03:56]} 17. Bf2 {[%emt 0:02:52]} f5 {[%emt 0:05:07]} 18. exf5 {[%emt 0:08:45]} Bxc3 {[%emt 0:09:10]} 19. bxc3 {[%emt 0:00:59]} Nf4 {[%emt 0:01:40]} 20. Bd3 {[%emt 0:00:19]} Qf7 {[%emt 0:00:38]} 21. Qd2 {[%emt 0:08:17]} Qh5 {[%emt 0:07:42]} 22. Bg3 {[%emt 0:02:46]} Nxd3 {[%emt 0:02:04]} 23. Qxd3 {[%emt 0:00:05]} g4 {[%emt 0:00:18]} 24. fxg4 {[%emt 0:01:37]} Qxg4 {[%emt 0:00:07]} 25. f6 {[%emt 0:01:18]} Re2 {[%emt 0:03:11]} 26. Rd2 {[%emt 0:04:14]} Re4 {[%emt 0:07:51]} 27. f7+ {[%emt 0:02:22]} Kg7 {[%emt 0:01:36]} 28. Bxd6 {[%emt 0:01:51]} cxd6 {[%emt 0:07:00]} 29. Qxd6 {[%emt 0:00:15]} Qc8 {[%emt 0:00:49]} 30. Qf6+ {[%emt 0:00:33]} Kf8 {[%emt 0:00:03]} 31. Qh6+ {[%emt 0:00:13]} Ke7 {[%emt 0:00:09]} 32. Qd6# {[%emt 0:00:09]} 1-0

[Event "Irish New Year Events-IM2 2020"]
[Site "Dublin"]
[Date "2020.01.03"]
[Round "3.12"]
[White "Carroll, Peter"]
[Black "Han, Yichen"]
[Result "0-1"]
[ECO "C47"]
[WhiteElo "2087"]
[BlackElo "2257"]
[Annotator "NA"]
[PlyCount "94"]
[EventDate "2020.01.02"]
[EventType "tourn"]
[EventCountry "IRL"]
[SourceTitle "playchess.com"]
[Source "ChessBase"]
[SourceQuality "1"]
[TimeControl "40/5400+30:1800+30"]

1. e4 {[%emt 0:00:00]} e5 {[%emt 0:00:00]} 2. Nf3 {[%emt 0:00:00]} Nc6 {[%emt 0:00:00]} 3. Nc3 {[%emt 0:00:00]} Nf6 {[%emt 0:00:00]} 4. g3 {[%emt 0:00:00]} d5 {[%emt 0:00:08]} 5. exd5 {[%emt 0:00:00]} Nxd5 {[%emt 0:00:08]} 6. Bg2 {[%emt 0:00:00]} Nxc3 {[%emt 0:00:16]} 7. bxc3 {[%emt 0:00:00]} Bc5 {[%emt 0:00:18]} 8. O-O {[%emt 0:00:00]} Bg4 {[%emt 0:02:04]} 9. Re1 {[%emt 0:00:00]} O-O {[%emt 0:00:57]} 10. h3 {[%emt 0:00:01]} Bh5 {[%emt 0:00:29]} 11. g4 {[%emt 0:02:17]} Bg6 {[%emt 0:00:10]} 12. Nxe5 {[%emt 0:01:08]} Nxe5 {[%emt 0:10:11]} 13. Rxe5 {[%emt 0:00:32]} Bd6 {[%emt 0:02:37]} 14. Re1 {[%emt 0:03:16]} Qh4 {[%emt 0:01:23]} 15. d3 {[%emt 0:12:43]} f5 {[%emt 0:00:48]} 16. Rf1 {[%emt 0:11:06]} h5 {[%emt 0:09:00]} 17. gxh5 {[%emt 0:10:20]} Bxh5 {[%emt 0:00:19]} 18. Qd2 {[%emt 0:00:57]} f4 {[%emt 0:10:21]} 19. f3 {[%emt 0:00:49]} Rae8 {[%emt 0:00:58]} 20. Qf2 {[%emt 0:01:14]} Be7 {[%emt 0:01:32]} 21. Bd2 {[%emt 0:03:16]} Qxf2+ {[%emt 0:03:07]} 22. Rxf2 {[%emt 0:00:17]} Bh4 {[%emt 0:00:07]} 23. Bf1 {[%emt 0:03:08]} Bxf2+ {[%emt 0:01:12]} 24. Kxf2 {[%emt 0:00:01]} Re6 {[%emt 0:02:22]} 25. Rb1 {[%emt 0:01:06]} Rb6 {[%emt 0:00:30]} 26. Rxb6 {[%emt 0:01:04]} axb6 {[%emt 0:00:06]} 27. d4 {[%emt 0:00:10]} g5 {[%emt 0:00:43]} 28. a3 {[%emt 0:00:30]} Bg6 {[%emt 0:03:50]} 29. Bd3 {[%emt 0:00:03]} Bxd3 {[%emt 0:00:42]} 30. cxd3 {[%emt 0:00:02]} Kg7 {[%emt 0:01:30]} 31. c4 {[%emt 0:00:17]} Kg6 {[%emt 0:00:19]} 32. Bb4 {[%emt 0:00:26]} Re8 {[%emt 0:00:34]} 33. d5 {[%emt 0:00:41]} Re3 {[%emt 0:02:21]} 34. d4 {[%emt 0:00:03]} Rd3 {[%emt 0:00:14]} 35. c5 {[%emt 0:00:22]} bxc5 {[%emt 0:00:43]} 36. Bxc5 {[%emt 0:00:11]} b6 {[%emt 0:00:09]} 37. d6 {[%emt 0:00:07]} cxd6 {[%emt 0:00:15]} 38. Bxd6 {[%emt 0:01:03]} Rxd4 {[%emt 0:00:15]} 39. Be7 {[%emt 0:00:31]} Rd2+ {[%emt 0:00:18]} 40. Kg1 {[%emt 0:00:07]} Kh5 {[%emt 0:00:11]} 41. a4 {[%emt 0:30:44]} Kh4 {[%emt 0:30:16]} 42. Kf1 {[%emt 0:00:10]} Kxh3 {[%emt 0:00:16]} 43. Bxg5 {[%emt 0:00:05]} Kg3 {[%emt 0:00:07]} 44. Ke1 {[%emt 0:00:16]} Ra2 {[%emt 0:00:07]} 45. Bd8 {[%emt 0:00:07]} Kxf3 {[%emt 0:00:13]} 46. Bxb6 {[%emt 0:00:05]} Rxa4 {[%emt 0:00:08]} 47. Kf1 {[%emt 0:00:34]} Ra1# {[%emt 0:00:08]} 0-1

[Event "Irish New Year Events-IM2 2020"]
[Site "Dublin"]
[Date "2020.01.03"]
[Round "3.14"]
[White "Kanyamarala, Trisha"]
[Black "Froewis, Georg"]
[Result "1-0"]
[ECO "D32"]
[WhiteElo "2195"]
[BlackElo "2470"]
[Annotator "ChessBase"]
[PlyCount "143"]
[EventDate "2020.01.02"]
[EventType "tourn"]
[EventCountry "IRL"]
[SourceTitle "playchess.com"]
[Source "ChessBase"]
[SourceQuality "1"]
[TimeControl "40/5400+30:1800+30"]

1. d4 {[%emt 0:00:00]} e6 {[%emt 0:00:00]} 2. c4 {[%emt 0:00:00]} c5 {[%emt 0:00:00]} 3. Nf3 {[%emt 0:02:14]} cxd4 {[%emt 0:00:00]} 4. Nxd4 {[%emt 0:00:08]} Nc6 {[%emt 0:00:42]} 5. e3 {[%emt 0:03:29]} Nf6 {[%emt 0:00:42]} 6. Nc3 {[%emt 0:00:56]} d5 {[%emt 0:01:31]} 7. cxd5 {[%emt 0:04:22]} exd5 {[%emt 0:00:02]} 8. Be2 {[%emt 0:01:31]} Bd6 {[%emt 0:00:05]} 9. O-O {[%emt 0:00:47]} O-O {[%emt 0:00:03]} 10. Bf3 {[%emt 0:03:56]} Be5 {[%emt 0:08:28]} 11. a3 {[%emt 0:04:47]} Re8 {[%emt 0:02:35]} 12. Qd3 {[%emt 0:10:04]} Bg4 {[%emt 0:10:16]} 13. Bxg4 {[%emt 0:03:08]} Nxg4 {[%emt 0:02:47]} 14. h3 {[%emt 0:02:03]} Nf6 {[%emt 0:03:40]} 15. Nf3 {[%emt 0:02:06]} Rc8 {[%emt 0:05:27]} 16. Bd2 {[%emt 0:02:29]} Bb8 {[%emt 0:00:49]} 17. Rfd1 {[%emt 0:03:39]} Qd7 {[%emt 0:04:36]} 18. Be1 {[%emt 0:02:27]} Rcd8 {[%emt 0:00:10]} 19. Nb5 {[%emt 0:04:12]} Ne4 {[%emt 0:02:36]} 20. Nc3 {[%emt 0:03:57]} Nf6 {[%emt 0:05:13]} 21. Nb5 {[%emt 0:00:52]} Qe7 {[%emt 0:01:42]} 22. Nbd4 {[%emt 0:03:50]} Ne4 {[%emt 0:01:54]} 23. Rac1 {[%emt 0:03:03]} Ne5 {[%emt 0:15:33]} 24. Qb3 {[%emt 0:01:56]} Nc4 {[%emt 0:03:21]} 25. Ne2 {[%emt 0:03:32]} h5 {[%emt 0:09:02]} 26. Nc3 {[%emt 0:02:24]} Nxc3 {[%emt 0:01:10]} 27. Bxc3 {[%emt 0:01:30]} g5 {[%emt 0:01:47]} 28. Qc2 {[%emt 0:02:02]} Qe4 {[%emt 0:18:03]} 29. Nxg5 {[%emt 0:04:46]} Qxc2 {[%emt 0:00:45]} 30. Rxc2 {[%emt 0:00:04]} b5 {[%emt 0:00:38]} 31. Nf3 {[%emt 0:01:22]} a6 {[%emt 0:00:09]} 32. Nd4 {[%emt 0:00:32]} Rc8 {[%emt 0:00:53]} 33. Nf5 {[%emt 0:00:51]} Be5 {[%emt 0:00:21]} 34. Bxe5 {[%emt 0:04:16]} Rxe5 {[%emt 0:00:06]} 35. Rxd5 {[%emt 0:00:48]} Rxd5 {[%emt 0:00:31]} 36. Ne7+ {[%emt 0:00:06]} Kg7 {[%emt 0:00:05]} 37. Nxd5 {[%emt 0:00:11]} Rd8 {[%emt 0:00:17]} 38. e4 {[%emt 0:01:00]} f5 {[%emt 0:00:17]} 39. f3 {[%emt 0:01:23]} fxe4 {[%emt 0:00:12]} 40. fxe4 {[%emt 0:00:06]} Kf7 {[%emt 0:01:40]} 41. a4 {[%emt 0:32:54]} Nd6 {[%emt 0:31:01]} 42. Rc7+ {[%emt 0:00:29]} Kg6 {[%emt 0:00:41]} 43. Nf4+ {[%emt 0:00:22]} Kf6 {[%emt 0:00:33]} 44. Nxh5+ {[%emt 0:01:13]} Ke5 {[%emt 0:00:03]} 45. Re7+ {[%emt 0:01:55]} Kd4 {[%emt 0:00:06]} 46. axb5 {[%emt 0:00:08]} axb5 {[%emt 0:00:09]} 47. Ng3 {[%emt 0:00:30]} Nc4 {[%emt 0:00:43]} 48. Rb7 {[%emt 0:02:18]} Kc5 {[%emt 0:00:08]} 49. b3 {[%emt 0:00:55]} Nd2 {[%emt 0:00:10]} 50. Rc7+ {[%emt 0:00:34]} Kb4 {[%emt 0:00:13]} 51. e5 {[%emt 0:00:57]} Re8 {[%emt 0:00:22]} 52. Rc2 {[%emt 0:00:45]} Nxb3 {[%emt 0:00:13]} 53. Re2 {[%emt 0:00:18]} Nd4 {[%emt 0:00:05]} 54. Re4 {[%emt 0:00:11]} Kc5 {[%emt 0:00:55]} 55. Kf2 {[%emt 0:01:13]} b4 {[%emt 0:00:48]} 56. Ne2 {[%emt 0:00:28]} Nc6 {[%emt 0:01:30]} 57. e6 {[%emt 0:04:11]} Kd5 {[%emt 0:01:23]} 58. Ke3 {[%emt 0:00:11]} b3 {[%emt 0:00:26]} 59. Nf4+ {[%emt 0:01:58]} Kd6 {[%emt 0:00:35]} 60. Kd2 {[%emt 0:01:37]} Rb8 {[%emt 0:01:07]} 61. Kc1 {[%emt 0:04:21]} Ne7 {[%emt 0:00:02]} 62. Kb2 {[%emt 0:00:29]} Rb5 {[%emt 0:00:30]} 63. g4 {[%emt 0:01:12]} Nc6 {[%emt 0:00:04]} 64. Nd3 {[%emt 0:00:36]} Ke7 {[%emt 0:00:51]} 65. h4 {[%emt 0:00:24]} Na5 {[%emt 0:00:45]} 66. Nf4 {[%emt 0:00:29]} Rc5 {[%emt 0:00:37]} 67. Ng6+ {[%emt 0:00:08]} Kd8 {[%emt 0:00:24]} 68. e7+ {[%emt 0:00:28]} Ke8 {[%emt 0:00:01]} 69. Rf4 {[%emt 0:00:34]} Rc2+ {[%emt 0:00:01]} 70. Kb1 {[%emt 0:00:06]} Re2 {[%emt 0:01:02]} 71. Rf8+ {[%emt 0:00:12]} Kd7 {[%emt 0:00:01]} 72. Rd8+ {[%emt 0:00:10]} 1-0

[Event "Irish New Year Events-IM2 2020"]
[Site "Dublin"]
[Date "2020.01.03"]
[Round "3.15"]
[White "Melaugh, Gavin"]
[Black "Haque, Muhtarim-Ul"]
[Result "0-1"]
[ECO "A22"]
[WhiteElo "2076"]
[BlackElo "2045"]
[Annotator "NA"]
[PlyCount "70"]
[EventDate "2020.01.02"]
[EventType "tourn"]
[EventCountry "IRL"]
[SourceTitle "playchess.com"]
[Source "ChessBase"]
[SourceQuality "1"]
[TimeControl "40/5400+30:1800+30"]

1. c4 {[%emt 0:00:00]} e5 {[%emt 0:00:00]} 2. Nc3 {[%emt 0:00:00]} Bb4 {[%emt 0:00:00]} 3. e4 {[%emt 0:00:53]} Nf6 {[%emt 0:00:18]} 4. d3 {[%emt 0:00:09]} O-O {[%emt 0:00:23]} 5. a3 {[%emt 0:04:11]} Bxc3+ {[%emt 0:00:26]} 6. bxc3 {[%emt 0:00:02]} c6 {[%emt 0:00:36]} 7. Bg5 {[%emt 0:03:35]} d6 {[%emt 0:02:00]} 8. Nf3 {[%emt 0:05:19]} Re8 {[%emt 0:00:37]} 9. Be2 {[%emt 0:03:21]} Nbd7 {[%emt 0:00:53]} 10. O-O {[%emt 0:03:23]} Nf8 {[%emt 0:04:06]} 11. Ne1 {[%emt 0:04:46]} h6 {[%emt 0:02:26]} 12. Be3 {[%emt 0:07:29]} Ng6 {[%emt 0:00:29]} 13. f4 {[%emt 0:05:48]} exf4 {[%emt 0:01:38]} 14. Bxf4 {[%emt 0:00:23]} Qb6+ {[%emt 0:01:37]} 15. Kh1 {[%emt 0:01:13]} Nxf4 {[%emt 0:00:24]} 16. Rxf4 {[%emt 0:00:13]} d5 {[%emt 0:01:00]} 17. Rb1 {[%emt 0:20:04]} Qc7 {[%emt 0:03:55]} 18. Rxf6 {[%emt 0:00:45]} gxf6 {[%emt 0:00:08]} 19. cxd5 {[%emt 0:00:54]} cxd5 {[%emt 0:00:11]} 20. Qd2 {[%emt 0:00:57]} dxe4 {[%emt 0:00:43]} 21. dxe4 {[%emt 0:05:59]} Kg7 {[%emt 0:03:59]} 22. Nf3 {[%emt 0:03:18]} Bd7 {[%emt 0:03:38]} 23. Rb4 {[%emt 0:05:51]} Rad8 {[%emt 0:07:02]} 24. Nd4 {[%emt 0:05:39]} Rxe4 {[%emt 0:02:07]} 25. Bd3 {[%emt 0:05:26]} Re5 {[%emt 0:01:20]} 26. Rc4 {[%emt 0:06:27]} Qd6 {[%emt 0:01:48]} 27. Qf2 {[%emt 0:01:53]} Qxa3 {[%emt 0:05:43]} 28. Nf3 {[%emt 0:04:51]} Qc1+ {[%emt 0:01:45]} 29. Bf1 {[%emt 0:00:07]} Rf5 {[%emt 0:07:34]} 30. Qg3+ {[%emt 0:01:27]} Kh7 {[%emt 0:01:00]} 31. Kg1 {[%emt 0:00:29]} Bb5 {[%emt 0:00:26]} 32. Qg4 {[%emt 0:00:33]} Rdd5 {[%emt 0:02:08]} 33. h4 {[%emt 0:00:30]} Bxc4 {[%emt 0:00:44]} 34. Qxc4 {[%emt 0:00:07]} Qe3+ {[%emt 0:00:32]} 35. Kh2 {[%emt 0:00:10]} Qf4+ {[%emt 0:45:54] Ng1} 0-1

[Event "Irish New Year Events-IM2 2020"]
[Site "Dublin"]
[Date "2020.01.04"]
[Round "4.12"]
[White "Froewis, Georg"]
[Black "Melaugh, Gavin"]
[Result "1-0"]
[ECO "A85"]
[WhiteElo "2470"]
[BlackElo "2076"]
[Annotator "RC"]
[PlyCount "51"]
[EventDate "2020.01.02"]
[EventType "tourn"]
[EventCountry "IRL"]
[SourceTitle "playchess.com"]
[Source "ChessBase"]
[SourceQuality "1"]
[TimeControl "5400+30"]

1. Nf3 {[%emt 0:00:00]} d6 {[%emt 0:11:08]} 2. d4 {[%emt 0:00:00]} f5 {[%emt 0:00:04]} 3. c4 {[%emt 0:00:01]} e6 {[%emt 0:01:13]} 4. Nc3 {[%emt 0:03:08]} Nf6 {[%emt 0:00:05]} 5. Qc2 {[%emt 0:00:41]} d5 {[%emt 0:06:23]} 6. Bg5 {[%emt 0:00:23]} Be7 {[%emt 0:02:29]} 7. e3 {[%emt 0:01:10]} O-O {[%emt 0:07:41]} 8. Bxf6 {[%emt 0:00:03]} Rxf6 {[%emt 0:06:32]} 9. cxd5 {[%emt 0:00:07]} Bb4 {[%emt 0:04:58]} 10. dxe6 {[%emt 0:00:39]} Bxe6 {[%emt 0:01:46]} 11. Bd3 {[%emt 0:00:05]} Qe8 {[%emt 0:08:08]} 12. O-O {[%emt 0:06:08]} Qh5 {[%emt 0:06:08]} 13. Ne2 {[%emt 0:04:09]} Bd6 {[%emt 0:02:10]} 14. Ne5 {[%emt 0:00:06]} Kh8 {[%emt 0:29:31]} 15. Nf4 {[%emt 0:01:45]} Qe8 {[%emt 0:00:17]} 16. Nxe6 {[%emt 0:01:49]} Qxe6 {[%emt 0:00:19]} 17. f4 {[%emt 0:00:07]} Nc6 {[%emt 0:01:39]} 18. a3 {[%emt 0:00:42]} Raf8 {[%emt 0:01:47]} 19. Rf3 {[%emt 0:01:29]} Qe7 {[%emt 0:03:12]} 20. Rh3 {[%emt 0:01:01]} g6 {[%emt 0:00:55]} 21. Rf3 {[%emt 0:00:26]} Kg7 {[%emt 0:01:38]} 22. Rc1 {[%emt 0:00:07]} Nd8 {[%emt 0:00:44]} 23. Qc3 {[%emt 0:00:35]} c6 {[%emt 0:00:20]} 24. g4 {[%emt 0:01:41]} fxg4 {[%emt 0:00:38]} 25. Nxg4 {[%emt 0:00:06]} R6f7 {[%emt 0:00:55]} 26. d5+ {[%emt 0:00:22]} 1-0